bitfinex-derivatives/quotes_SOLF0:USTF0_20240904
["timestamp","ask_amount","ask_price","bid_price","bid_amount"]
[1725443551953,3.8525,129.81,129.78,23.65]
[1725443552145,1.4453,129.82,129.78,27.50694492]
[1725443552647,0.04918747,129.81,129.79,0.04922714]
[1725443552950,3.90168747,129.81,129.79,0.04922714]
[1725443554051,3.8526,129.8,129.79,0.04922714]
[1725443556347,0.04918747,129.81,129.79,0.04922714]
[1725443556549,3.90158747,129.81,129.79,0.04922714]
[1725443558255,3.8526,129.8,129.79,0.04922714]
[1725443560355,3.8538,129.77,129.74,27.5043]
[1725443560960,3.8538,129.77,129.74,3.8543]
[1725443561361,3.90518412,129.77,129.74,3.90413151]
[1725443561955,3.8538,129.76,129.74,0.04983151]
[1725443562356,0.05138412,129.77,129.74,0.04983151]
[1725443562557,3.8541,129.75,129.74,0.04983151]
[1725443566873,3.8539,129.76,129.74,0.04983151]
[1725443567969,3.8539,129.76,129.74,3.90413151]
[1725443568874,3.8539,129.76,129.74,0.04983151]
[1725443569471,3.8541,129.75,129.74,0.04983151]
[1725443569673,0.05138412,129.77,129.74,0.04983151]
[1725443569870,3.8539,129.76,129.74,0.04983151]
[1725443570175,0.05138412,129.77,129.74,0.04983151]
[1725443570475,3.8541,129.75,129.74,0.04983151]
[1725443572173,3.8541,129.75,129.68,2.8177]
[1725443572174,23.65,129.75,129.55,8.04869305]
[1725443572373,7.706,129.78,129.63,23.65]
[1725443572374,23.65,129.73,129.63,23.65]
[1725443572768,1.3389,129.72,129.65,23.65]
[1725443572964,1.3389,129.72,129.66,3.80975786]
[1725443573170,0.05370702,129.7,129.68,0.0494779]
[1725443573472,23.70370702,129.7,129.68,0.04896723]
[1725443574272,23.70370702,129.7,129.41,10.64829011]
[1725443574474,23.65,129.69,129.58,23.65]
[1725443574869,3.8579,129.63,129.58,27.5089]
[1725443575275,0.05276185,129.62,129.58,27.5089]
[1725443575666,0.05276185,129.62,129.6,23.65]
[1725443577374,1.3389,129.72,129.6,47.3]
[1725443577580,1.3389,129.72,129.66,23.65]
[1725443577776,3.8557,129.7,129.66,23.65]
[1725443577981,3.93783589,129.74,129.66,23.65]
[1725443578179,5.38723589,129.74,129.66,27.51300582]
[1725443578378,3.8561,129.69,129.66,27.51300582]
[1725443578681,3.8561,129.69,129.66,27.56629596]
[1725443580180,0.05842213,129.71,129.66,27.56629596]
[1725443580970,3.8561,129.69,129.66,27.56629596]
[1725443582578,3.8562,129.68,129.66,23.70329014]
[1725443582781,3.91132106,129.68,129.66,23.70329014]
[1725443583083,0.05512106,129.68,129.66,0.05329014]
[1725443583383,3.8565,129.67,129.66,0.05329014]
[1725443586883,3.8581,129.62,129.58,23.65]
[1725443587378,3.8581,129.62,129.59,3.8587]
[1725443587981,3.91154437,129.62,129.59,3.8587]
[1725443589183,0.05344437,129.62,129.6,3.8585]
[1725443589485,0.05344437,129.62,129.58,23.65]
[1725443589889,0.05344437,129.62,129.57,3.8566578]
[1725443590089,0.05344437,129.62,129.57,23.65]
[1725443590290,3.91154437,129.62,129.59,3.8588]
[1725443591085,0.05344437,129.62,129.55,23.65]
[1725443591291,0.05344437,129.62,129.55,27.4720505]
[1725443591590,3.8586,129.6,129.57,3.8593]
[1725443591783,0.05344437,129.62,129.55,27.4720505]
[1725443591978,0.05051206,129.6,129.55,27.4720505]
[1725443592186,3.90921206,129.6,129.57,3.8592]
[1725443594398,0.05051206,129.6,129.55,27.4720505]
[1725443594690,1.4211,129.67,129.55,27.4720505]
[1725443594691,9.1271,129.67,129.59,23.65]
[1725443594884,9.1271,129.67,129.6,3.8584]
[1725443595283,9.1271,129.67,129.59,23.65]
[1725443595687,0.05764102,129.64,129.62,0.05427403]
[1725443595893,3.91524102,129.64,129.62,0.05427403]
[1725443596286,0.05764102,129.64,129.62,0.05427403]
[1725443596790,3.8577,129.63,129.62,0.05427403]
[1725443603303,7.706,129.67,129.62,23.70427403]
[1725443603508,89.0138913,129.86,129.66,23.65]
[1725443603509,10.4049,129.73,129.66,23.65]
[1725443603690,2.6989,129.73,129.67,3.79001099]
[1725443603998,6.5538,129.73,129.67,3.79001099]
[1725443604400,23.65,129.77,129.68,23.65]
[1725443604702,0.05897149,129.74,129.71,0.05209804]
[1725443605601,0.05897149,129.74,129.71,3.98483718]
[1725443605799,0.05897149,129.74,129.71,0.05209804]
[1725443606397,0.05897149,129.74,129.72,7.67374237]
[1725443606591,0.05897149,129.74,129.72,3.8548]
[1725443609301,0.05897149,129.74,129.73,3.8547]
[1725443609602,0.05897149,129.74,129.72,3.8548]
[1725443609901,0.05897149,129.74,129.71,3.99197606]
[1725443610404,0.05897149,129.74,129.73,3.8547]
[1725443610602,0.05897149,129.74,129.71,3.99197606]
[1725443610902,0.05897149,129.74,129.71,0.05209804]
[1725443611099,29.67897149,129.74,129.71,0.05209804]
[1725443611300,1.3748,129.73,129.71,0.05209804]
[1725443611501,3.855,129.72,129.71,0.05209804]
[1725443614707,7.63864095,129.72,129.71,0.05209804]
[1725443614908,3.91347149,129.74,129.71,0.05209804]
[1725443615406,0.05897149,129.74,129.71,0.05209804]
[1725443616002,0.05897149,129.74,129.71,3.90719804]
[1725443616708,0.05897149,129.74,129.72,3.8548]
[1725443617812,0.05897149,129.74,129.73,3.8547]
[1725443624204,0.05897149,129.74,129.72,37.32407815]
[1725443624714,0.05897149,129.74,129.72,33.46917815]
[1725443625213,0.05897149,129.74,129.73,3.8547]
[1725443625419,0.05897149,129.74,129.72,33.46917815]
[1725443625610,0.05897149,129.74,129.72,3.8548]
[1725443625810,0.05897149,129.74,129.71,0.05209804]
[1725443626118,3.8547,129.73,129.71,0.05209804]
[1725443628418,0.05897149,129.74,129.71,3.90729804]
[1725443628419,3.91357149,129.74,129.71,3.90729804]
[1725443629617,3.8547,129.73,129.71,3.90729804]
[1725443630018,3.8547,129.73,129.71,0.05209804]
[1725443630313,3.855,129.72,129.71,0.05209804]
[1725443637418,1.3777,129.73,129.71,0.05209804]
[1725443637419,5.2325,129.73,129.71,0.05209804]
[1725443637924,3.8548,129.73,129.71,0.05209804]
[1725443638422,3.855,129.72,129.71,0.05209804]
[1725443649930,3.85350484,129.74,129.71,0.05209804]
[1725443649931,3.8548,129.73,129.71,0.05209804]
[1725443650226,0.05897149,129.74,129.71,0.05209804]
[1725443650621,3.855,129.72,129.71,0.05209804]
[1725443656029,0.05897149,129.74,129.71,0.05209804]
[1725443656334,0.05897149,129.74,129.71,3.90719804]
[1725443656536,3.8547,129.73,129.71,0.05209804]
[1725443656742,0.05897149,129.74,129.71,0.05209804]
[1725443658241,3.855,129.72,129.71,0.05209804]
[1725443660841,3.90924344,129.73,129.63,1.35]
[1725443660842,3.8563,129.68,129.63,1.35]
[1725443661137,23.72,129.71,129.64,3.8572]
[1725443661338,3.8565,129.67,129.64,3.8572]
[1725443661641,23.72,129.7,129.62,3.8577]
[1725443661838,23.72,129.7,129.59,2.8274]
[1725443662134,0.05685731,129.67,129.65,0.05292866]
[1725443662535,3.8568,129.66,129.65,0.05292866]
[1725443662731,27.59834814,129.66,129.59,2.8274]
[1725443662939,25.0801,129.66,129.59,2.8274]
[1725443663437,3.85404578,129.65,129.59,6.6862]
[1725443663742,3.91317811,129.63,129.61,0.02226912]
[1725443665140,0.05527811,129.63,129.61,0.02226912]
[1725443666142,3.91317811,129.63,129.61,0.02226912]
[1725443666342,0.05527811,129.63,129.61,0.02226912]
[1725443666842,3.91307811,129.63,129.61,0.02226912]
[1725443668636,3.858,129.62,129.61,0.02226912]
[1725443668830,0.05527811,129.63,129.61,0.02226912]
[1725443669430,3.858,129.62,129.61,0.02226912]
[1725443672335,3.858,129.62,129.61,0.02226912]
[1725443672739,3.91307811,129.63,129.61,0.02226912]
[1725443672930,0.05527811,129.63,129.61,0.02226912]
[1725443673332,3.858,129.62,129.61,0.02226912]
[1725443674844,3.91317811,129.63,129.61,0.02226912]
[1725443675947,0.05527811,129.63,129.61,0.02226912]
[1725443676839,0.05527811,129.63,129.61,3.88036912]
[1725443678337,0.05527811,129.63,129.61,0.02226912]
[1725443679141,3.91297811,129.63,129.61,0.02226912]
[1725443681944,3.91297811,129.63,129.61,3.88046912]
[1725443681945,0.05527811,129.63,129.61,3.88046912]
[1725443682551,0.05527811,129.63,129.62,13.338]
[1725443682750,0.05527811,129.63,129.62,9.48]
[1725443683843,0.05527811,129.63,129.61,3.88036912]
[1725443684144,0.05527811,129.63,129.61,13.36036912]
[1725443684744,0.05527811,129.63,129.62,3.858]
[1725443684939,0.05527811,129.63,129.61,9.50226912]
[1725443686653,3.91317811,129.63,129.61,9.50226912]
[1725443689955,3.91317811,129.63,129.61,0.02226912]
[1725443690753,3.858,129.62,129.61,0.02226912]
[1725443691754,3.91317811,129.63,129.61,3.88046912]
[1725443692060,0.05527811,129.63,129.61,0.02226912]
[1725443692360,3.91307811,129.63,129.61,3.88046912]
[1725443693858,0.05527811,129.63,129.62,9.48]
[1725443694159,0.05527811,129.63,129.61,3.88046912]
[1725443698863,3.91297811,129.63,129.61,3.88046912]
[1725443699055,0.05527811,129.63,129.62,3.858]
[1725443699962,0.05527811,129.63,129.61,3.88026912]
[1725443700162,0.05527811,129.63,129.61,0.02226912]
[1725443700562,0.05527811,129.63,129.62,3.858]
[1725443701060,0.05527811,129.63,129.61,3.88036912]
[1725443701662,3.91297811,129.63,129.61,3.88036912]
[1725443702055,0.05527811,129.63,129.61,0.02226912]
[1725443702262,3.858,129.62,129.61,0.02226912]
[1725443705259,3.91307811,129.63,129.61,0.02226912]
[1725443705461,0.05527811,129.63,129.61,0.02226912]
[1725443705862,3.91307811,129.63,129.61,0.02226912]
[1725443706063,3.91307811,129.63,129.62,9.48]
[1725443706064,0.05527811,129.63,129.62,9.48]
[1725443707464,0.05527811,129.63,129.61,0.02226912]
[1725443707866,3.91307811,129.63,129.61,0.02226912]
[1725443708567,0.05527811,129.63,129.61,3.88046912]
[1725443712170,3.91297811,129.63,129.61,3.88046912]
[1725443712371,3.91297811,129.63,129.61,0.02226912]
[1725443712572,0.05527811,129.63,129.61,0.02226912]
[1725443713072,0.05527811,129.63,129.62,3.858]
[1725443713271,7.7077,129.76,129.62,9.48]
[1725443713476,3.88302044,129.7,129.65,9.48]
[1725443713678,4.0189,129.71,129.65,13.3369]
[1725443714273,3.90978849,129.69,129.67,0.05436085]
[1725443716176,0.05378849,129.69,129.67,0.05436085]
[1725443716877,3.90968849,129.69,129.67,0.05436085]
[1725443717273,0.05378849,129.69,129.68,13.3362]
[1725443719084,2.6852,129.75,129.7,3.8553]
[1725443719297,1.3301,129.75,129.71,9.48]
[1725443719577,1.3301,129.75,129.66,42.1601]
[1725443719578,3.8545,129.74,129.66,42.1601]
[1725443719780,3.8545,129.74,129.7,3.8553]
[1725443720279,0.05790082,129.73,129.71,13.38392915]
[1725443721772,1.4076,129.78,129.72,9.48]
[1725443721981,230.89999329,129.8,129.75,9.48]
[1725443722281,3.8533,129.78,129.75,9.48]
[1725443722880,3.90613177,129.78,129.75,9.5381026]
[1725443723184,0.05283177,129.78,129.75,9.5381026]
[1725443723876,3.90613177,129.78,129.75,9.5381026]
[1725443725681,3.90613177,129.78,129.77,9.48]
[1725443726081,0.05283177,129.78,129.77,9.48]
[1725443726279,0.05283177,129.78,129.75,0.0581026]
[1725443726480,3.8538,129.76,129.75,0.0581026]
[1725443728178,3.8549,129.73,129.71,9.48]
[1725443728988,3.855,129.72,129.7,9.48]
[1725443729189,3.9053839,129.72,129.7,9.53008001]
[1725443729583,0.0503839,129.72,129.7,9.53008001]
[1725443730388,3.9055839,129.72,129.7,0.05008001]
[1725443730583,0.0503839,129.72,129.7,0.05008001]
[1725443731389,3.8553,129.71,129.7,0.05008001]
[1725443731992,3.9055839,129.72,129.7,0.05008001]
[1725443733182,3.8553,129.71,129.7,0.05008001]
[1725443734696,3.9054839,129.72,129.7,0.05008001]
[1725443735397,3.8553,129.71,129.7,0.05008001]
[1725443737292,3.9054839,129.72,129.7,0.05008001]
[1725443737498,0.0503839,129.72,129.7,0.05008001]
[1725443738199,3.8553,129.71,129.7,0.05008001]
[1725443741695,0.0503839,129.72,129.7,9.53008001]
[1725443742292,3.9053839,129.72,129.7,9.53008001]
[1725443744897,0.0503839,129.72,129.7,9.53008001]
[1725443745397,0.0503839,129.72,129.7,13.38558001]
[1725443745595,0.0503839,129.72,129.7,9.53008001]
[1725443747496,0.0503839,129.72,129.7,13.38568001]
[1725443748591,0.0503839,129.72,129.7,0.05008001]
[1725443748794,0.0503839,129.72,129.7,9.53008001]
[1725443749192,0.0503839,129.72,129.7,13.38548001]
[1725443749591,0.0503839,129.72,129.7,9.53008001]
[1725443749795,3.9053839,129.72,129.7,9.53008001]
[1725443750599,0.0503839,129.72,129.71,9.48]
[1725443751999,3.9053839,129.72,129.7,0.05008001]
[1725443752199,3.9053839,129.72,129.7,9.53008001]
[1725443752998,3.94819848,129.88,129.7,9.53008001]
[1725443752999,7.717,129.84,129.71,37.92]
[1725443753196,4.49613467,129.8,129.76,9.48]
[1725443753396,4.55374412,129.79,129.76,9.48]
[1725443753696,3.8531,129.79,129.76,9.48]
[1725443753892,3.8532,129.78,129.76,0.05167565]
[1725443754102,3.8532,129.78,129.76,9.53167565]
[1725443756005,3.90255606,129.79,129.76,9.53167565]
[1725443756204,11.61955606,129.79,129.76,9.53167565]
[1725443757106,7.76655606,129.79,129.76,0.05167565]
[1725443757400,17.197,129.77,129.67,1.3643]
[1725443757611,7.717,129.75,129.71,13.3352]
[1725443758099,7.717,129.75,129.72,9.48]
[1725443758307,7.717,129.75,129.72,9.53365211]
[1725443758308,3.8544,129.74,129.72,9.53365211]
[1725443759407,3.8547,129.73,129.72,0.05365211]
[1725443763320,11.5715,129.74,129.72,0.05365211]
[1725443763511,7.717,129.74,129.72,0.05365211]
[1725443763910,3.8547,129.73,129.72,0.05365211]
[1725443767621,3.8545,129.74,129.72,0.05365211]
[1725443767925,7.77139824,129.75,129.73,9.48]
[1725443768125,3.90869824,129.75,129.73,9.48]
[1725443768723,3.8544,129.74,129.72,9.53365211]
[1725443768924,3.8799627,129.75,129.72,0.05365211]
[1725443769123,3.8547,129.73,129.72,0.05365211]
[1725443773427,3.8546,129.74,129.72,9.53365211]
[1725443773826,7.77139824,129.75,129.72,9.53365211]
[1725443774024,0.05439824,129.75,129.72,9.53365211]
[1725443774919,3.90849824,129.75,129.72,13.38845211]
[1725443775121,0.05439824,129.75,129.74,9.48]
[1725443776330,0.05439824,129.75,129.74,13.3344]
[1725443776728,0.05439824,129.75,129.74,17.17539012]
[1725443776928,0.05439824,129.75,129.74,13.3344]
[1725443778419,0.05439824,129.75,129.74,9.48]
[1725443778819,0.05439824,129.75,129.73,3.8545]
[1725443779032,0.05439824,129.75,129.74,9.48]
[1725443780729,0.05439824,129.75,129.74,13.3344]
[1725443780934,0.05439824,129.75,129.74,9.48]
[1725443781130,0.05439824,129.75,129.74,13.3344]
[1725443784539,0.05439824,129.75,129.74,17.19146595]
[1725443784835,3.8536,129.77,129.75,3.854]
[1725443785032,3.8533,129.78,129.76,9.48]
[1725443785826,3.91250341,129.78,129.76,9.53057615]
[1725443786829,3.91250341,129.78,129.76,0.05057615]
[1725443787033,3.91250341,129.78,129.76,9.53057615]
[1725443788841,3.8535,129.77,129.76,0.05057615]
[1725443792441,3.91250341,129.78,129.76,0.05057615]
[1725443793439,3.8535,129.77,129.76,0.05057615]
[1725443793644,17.197,129.78,129.67,5.39826456]
[1725443793935,1.3625,129.81,129.7,13.3355]
[1725443793936,7.717,129.75,129.7,13.3355]
[1725443794141,3.92769769,129.74,129.7,13.3355]
[1725443794339,1.3401,129.75,129.7,9.48]
[1725443794540,1.3401,129.75,129.71,0.05034805]
[1725443794845,7.7713945,129.74,129.71,0.05034805]
[1725443795643,3.8549,129.73,129.71,0.05034805]
[1725443796645,3.855,129.72,129.71,0.05034805]
[1725443797038,7.7713945,129.74,129.71,0.05034805]
[1725443798244,3.8548,129.73,129.71,9.53034805]
[1725443799944,11.6258945,129.74,129.71,9.53034805]
[1725443803848,3.8548,129.73,129.71,9.53034805]
[1725443804752,11.6258945,129.74,129.71,9.53034805]
[1725443806760,0.0543945,129.74,129.72,9.48]
[1725443808156,0.0543945,129.74,129.72,13.3349]
[1725443811464,0.0543945,129.74,129.73,3.8547]
[1725443811760,0.70018041,129.79,129.74,3.7836234]
[1725443811955,0.70018041,129.79,129.77,9.48]
[1725443812156,3.8532,129.78,129.77,9.48]
[1725443818255,3.8535,129.77,129.76,0.05709219]
[1725443819062,3.8542,129.75,129.73,9.48]
[1725443819262,9.48,129.78,129.71,9.48]
[1725443819465,9.48,129.76,129.66,40.6096]
[1725443819666,13.29907862,129.76,129.7,9.48]
[1725443820064,3.90952843,129.74,129.72,0.05752039]
[1725443820370,0.05492843,129.74,129.72,0.05752039]
[1725443821371,3.90942843,129.74,129.72,0.05752039]
[1725443822868,3.90942843,129.74,129.73,9.48]
[1725443823774,3.90942843,129.74,129.72,9.53752039]
[1725443828771,3.8547,129.73,129.72,9.53752039]
[1725443831581,3.90942843,129.74,129.72,9.53752039]
[1725443833280,3.8547,129.73,129.72,0.05752039]
[1725443838683,3.8547,129.73,129.72,9.53752039]
[1725443838977,3.8547,129.73,129.72,0.05752039]
[1725443839372,11.5717,129.73,129.72,0.05752039]
[1725443839572,7.717,129.73,129.68,9.48]
[1725443839980,7.717,129.73,129.66,3.9287439]
[1725443840183,3.8561,129.69,129.67,9.48]
[1725443840584,3.9066143,129.69,129.67,9.48]
[1725443840781,3.9066143,129.69,129.67,9.52865418]
[1725443844085,3.9066143,129.69,129.68,9.48]
[1725443844491,0.0505143,129.69,129.68,9.48]
[1725443848492,7.717,129.72,129.68,9.48]
[1725443848690,7.717,129.72,129.71,9.48]
[1725443848887,7.717,129.72,129.66,37.92]
[1725443849084,7.717,129.72,129.7,9.48]
[1725443849488,9.0845,129.74,129.7,9.48]
[1725443849784,0.05763701,129.73,129.71,0.04937497]
[1725443849979,11.5721,129.72,129.71,0.04937497]
[1725443852494,11.5721,129.72,129.71,0.04937497]
[1725443852696,3.91243701,129.73,129.71,0.04937497]
[1725443852995,0.05763701,129.73,129.72,9.48]
[1725443853893,0.05763701,129.73,129.72,13.335]
[1725443854085,3.8539,129.76,129.72,17.25093339]
[1725443854289,3.8539,129.76,129.75,9.48]
[1725443854690,15.01002961,129.77,129.75,9.48]
[1725443854691,18.86362961,129.77,129.75,9.48]
[1725443854894,3.8536,129.77,129.75,9.48]
[1725443855091,3.8536,129.77,129.75,0.05334543]
[1725443855092,0.05828053,129.77,129.75,0.05334543]
[1725443855290,0.05828053,129.77,129.76,9.48]
[1725443858195,0.05828053,129.77,129.75,13.38724543]
[1725443858894,3.91198053,129.77,129.75,0.05334543]
[1725443859093,3.91198053,129.77,129.75,9.53334543]
[1725443864506,3.8538,129.76,129.75,0.05334543]
[1725443864800,15.51854286,129.76,129.75,0.05334543]
[1725443865189,3.8565,129.67,129.63,6.6351]
[1725443865396,10.4982,129.75,129.63,2.7776]
[1725443865605,0.70002435,129.74,129.68,9.48]
[1725443865808,10.18002435,129.74,129.68,9.48]
[1725443865992,9.48,129.74,129.67,9.48]
[1725443866198,0.05830119,129.72,129.69,0.05288123]
[1725443866399,7.717,129.71,129.69,0.05288123]
[1725443867404,3.8556,129.7,129.69,0.05288123]
[1725443870204,11.5725,129.71,129.69,0.05288123]
[1725443870398,7.717,129.71,129.69,0.05288123]
[1725443871399,3.8556,129.7,129.69,0.05288123]
[1725443873720,11.5724,129.71,129.69,9.53288123]
[1725443874622,7.717,129.71,129.69,9.53288123]
[1725443874813,0.05830119,129.72,129.69,9.53288123]
[1725443875815,3.8555,129.71,129.69,9.53288123]
[1725443876417,3.8556,129.7,129.69,0.05288123]
[1725443876823,0.05830119,129.72,129.69,0.05288123]
[1725443877117,3.8556,129.7,129.69,0.05288123]
[1725443879410,3.8566,129.67,129.64,9.48]
[1725443880014,3.8563,129.68,129.64,13.3372]
[1725443880423,0.04980654,129.67,129.65,9.52890927]
[1725443880610,0.04980654,129.67,129.65,13.38580927]
[1725443881324,0.04980654,129.67,129.66,3.8568]
[1725443882825,0.04980654,129.67,129.66,13.3368]
[1725443885827,3.8557,129.7,129.68,3.8561]
[1725443886125,3.8557,129.7,129.68,9.48]
[1725443886726,0.04858609,129.7,129.68,9.53914659]
[1725443886924,0.70032089,129.76,129.68,9.48]
[1725443887126,3.8546,129.74,129.73,9.48]
[1725443887924,3.8542,129.75,129.73,9.48]
[1725443888121,3.9094327,129.75,129.73,9.5391142]
[1725443889129,11.6264327,129.75,129.73,9.5391142]
[1725443889333,3.9094327,129.75,129.73,9.5391142]
[1725443891825,3.8544,129.74,129.73,9.5391142]
[1725443893633,3.8544,129.74,129.73,0.0591142]
[1725443896533,11.5714,129.74,129.73,0.0591142]
[1725443901737,0.0552327,129.75,129.73,0.0591142]
[1725443901738,3.9094327,129.75,129.73,9.5391142]
[1725443901932,3.9094327,129.75,129.74,9.48]
[1725443902236,0.0552327,129.75,129.74,9.48]
[1725443903126,0.0552327,129.75,129.74,13.3344]
[1725443903331,9.0918,129.81,129.74,9.48]
[1725443903332,1.3748,129.81,129.74,9.48]
[1725443903530,3.8531,129.79,129.76,9.48]
[1725443904136,3.8533,129.78,129.76,9.48]
[1725443904337,3.90845233,129.78,129.76,9.53735463]
[1725443905041,11.62545233,129.78,129.76,9.53735463]
[1725443906138,0.05515233,129.78,129.76,9.53735463]
[1725443907537,3.90865233,129.78,129.76,9.53735463]
[1725443909242,11.62565233,129.78,129.76,9.53735463]
[1725443913945,3.8535,129.77,129.76,0.05735463]
[1725443914151,3.8535,129.77,129.76,9.53735463]
[1725443914940,3.8535,129.77,129.76,0.05735463]
[1725443920850,3.8535,129.77,129.76,9.53735463]
[1725443922451,3.90855233,129.78,129.76,9.53735463]
[1725443922651,0.05515233,129.78,129.77,9.48]
[1725443938860,3.90835233,129.78,129.77,9.48]
[1725443939560,3.90835233,129.78,129.76,0.05735463]
[1725443939770,3.90835233,129.78,129.77,9.48]
[1725443945773,0.05515233,129.78,129.77,9.48]
[1725443946078,0.05515233,129.78,129.76,0.05735463]
[1725443946368,9.48,129.77,129.71,9.48]
[1725443946572,1.3875,129.76,129.71,9.48]
[1725443947160,3.8549,129.73,129.71,9.48]
[1725443947366,0.05914936,129.75,129.72,0.0524274]
[1725443949269,3.8547,129.74,129.72,0.0524274]
[1725443949471,9.48,129.74,129.72,0.0524274]
[1725443949671,7.717,129.74,129.72,0.0524274]
[1725443950373,3.8547,129.73,129.72,0.0524274]
[1725443950566,11.5717,129.73,129.72,0.0524274]
[1725443958876,3.8557,129.7,129.68,9.48]
[1725443959083,3.8557,129.7,129.61,1.3959]
[1725443959372,3.8411091,129.71,129.64,3.8572]
[1725443959565,9.48,129.72,129.65,3.93020401]
[1725443959770,1.438,129.71,129.65,3.93020401]
[1725443959976,3.8559,129.69,129.67,9.53498768]
[1725443960174,3.84966331,129.7,129.67,9.53498768]
[1725443960373,7.717,129.69,129.67,0.05498768]
[1725443960582,3.84966331,129.7,129.67,0.05498768]
[1725443961477,3.8562,129.68,129.67,0.05498768]
[1725443962879,3.8571,129.65,129.49,7.7235]
[1725443963077,3.8571,129.65,129.62,9.48]
[1725443963981,3.91579799,129.65,129.62,9.53394894]
[1725443967582,3.8576,129.64,129.62,9.53394894]
[1725443968185,3.8577,129.63,129.62,0.05394894]
[1725443969691,3.8577,129.63,129.55,1.4511]
[1725443969692,3.78587237,129.62,129.56,3.78008476]
[1725443969888,3.78587237,129.62,129.57,9.48]
[1725443970085,3.8587,129.6,129.57,9.48]
[1725443970581,3.91696284,129.6,129.57,9.48]
[1725443971180,3.8589,129.59,129.57,9.48]
[1725443972286,0.05826284,129.6,129.58,13.40003659]
[1725443972487,7.717,129.65,129.58,9.48]
[1725443972691,3.90266396,129.64,129.61,9.48]
[1725443972884,11.61966396,129.64,129.61,9.48]
[1725443973085,3.8582,129.62,129.61,9.48]
[1725443974290,3.8582,129.62,129.6,0.05485438]
[1725443976799,3.9152844,129.63,129.6,0.05485438]
[1725443977001,3.9152844,129.63,129.6,9.53485438]
[1725443977300,0.0574844,129.63,129.6,0.05485438]
[1725443978402,3.8581,129.62,129.6,0.05485438]
[1725443980403,1.3941,129.69,129.61,9.48]
[1725443980404,10.4352,129.69,129.61,9.48]
[1725443980704,10.4352,129.69,129.64,9.48]
[1725443980904,3.857,129.66,129.64,9.48]
[1725443981507,3.90738822,129.66,129.64,9.53543733]
[1725443982295,3.90738822,129.66,129.64,0.05543733]
[1725443982604,3.8571,129.65,129.64,0.05543733]
[1725443982806,0.05038822,129.66,129.64,0.05543733]
[1725443983505,3.8571,129.65,129.64,0.05543733]
[1725443983707,0.05038822,129.66,129.64,0.05543733]
[1725443984002,3.90738822,129.66,129.64,0.05543733]
[1725443984205,0.05038822,129.66,129.64,0.05543733]
[1725443985109,3.90728822,129.66,129.64,0.05543733]
[1725443985400,0.05038822,129.66,129.64,0.05543733]
[1725443985800,7.717,129.65,129.64,0.05543733]
[1725443986208,0.05038822,129.66,129.64,0.05543733]
[1725443987602,11.62428822,129.66,129.64,0.05543733]
[1725443987799,7.76738822,129.66,129.64,0.05543733]
[1725443988513,3.8571,129.65,129.64,0.05543733]
[1725443996306,11.62428822,129.66,129.64,0.05543733]
[1725443996517,7.76738822,129.66,129.64,0.05543733]
[1725444000718,11.62418822,129.66,129.64,0.05543733]
[1725444000912,7.76738822,129.66,129.64,3.91273733]
[1725444001114,7.76738822,129.66,129.64,0.05543733]
[1725444001318,7.76738822,129.66,129.64,3.91263733]
[1725444001617,0.05038822,129.66,129.64,3.91263733]
[1725444001821,0.05038822,129.66,129.65,13.3371]
[1725444003417,0.05038822,129.66,129.64,3.91263733]
[1725444003625,0.05038822,129.66,129.65,9.48]
[1725444004325,0.05038822,129.66,129.65,13.3371]
[1725444004721,0.05038822,129.66,129.65,3.8571]
[1725444004925,0.05038822,129.66,129.65,9.48]
[1725444005824,0.05038822,129.66,129.65,13.3371]
[1725444006825,3.8557,129.7,129.67,3.8563]
[1725444007026,3.8557,129.7,129.68,9.48]
[1725444007724,3.8559,129.69,129.68,0.05119417]
[1725444010735,3.857,129.66,129.62,3.8579]
[1725444011030,9.48,129.67,129.61,9.48]
[1725444011232,17.197,129.67,129.61,9.48]
[1725444011923,0.05623829,129.65,129.63,0.05197821]
[1725444015636,3.91343829,129.65,129.63,0.05197821]
[1725444025055,3.91343829,129.65,129.64,9.48]
[1725444025251,0.05623829,129.65,129.64,9.48]
[1725444025657,0.05623829,129.65,129.64,13.3374]
[1725444028960,0.05623829,129.65,129.64,9.48]
[1725444030455,0.05623829,129.65,129.64,13.3374]